bitfinex-derivatives/quotes_SOLF0:USTF0_20251211
["timestamp","ask_amount","ask_price","bid_price","bid_amount"]
[1765416887186,0.05519692,133.56,133.54,0.04947595]
[1765416888688,9.92259692,133.56,133.54,0.04947595]
[1765416888890,3.13,133.55,133.54,0.04947595]
[1765416889385,3.13,133.53,133.5,3.1]
[1765416889783,3.13,133.53,133.49,63.62]
[1765416889990,3.13,133.53,133.49,66.72]
[1765416890293,3.13,133.52,133.49,63.62]
[1765416890492,3.17712893,133.52,133.49,63.67167175]
[1765416890686,3.17712893,133.52,133.49,66.77167175]
[1765416891392,0.04712893,133.52,133.49,66.77167175]
[1765416891689,0.04712893,133.52,133.51,3.1]
[1765416891893,6.7371,133.57,133.51,3.1]
[1765416892196,3.13,133.58,133.52,9.8392]
[1765416892491,8.74084217,133.57,133.53,3.1]
[1765416892692,3.13,133.57,133.53,3.1]
[1765416893094,0.0523202,133.56,133.54,0.05549966]
[1765416894899,0.0523202,133.56,133.54,3.15549966]
[1765416897001,2.76149298,133.55,133.54,0.05549966]
[1765416898898,6.7897202,133.56,133.54,0.05549966]
[1765416899199,0.0523202,133.56,133.54,3.15549966]
[1765416900391,9.9197202,133.56,133.54,0.05549966]
[1765416900900,0.0523202,133.56,133.54,3.15549966]
[1765416901097,6.57681611,133.62,133.54,3.15549966]
[1765416901290,5.62082192,133.61,133.54,3.15549966]
[1765416901495,6.57681611,133.62,133.56,3.1]
[1765416901694,12.35740428,133.61,133.56,3.1]
[1765416901895,6.57681611,133.62,133.56,3.1]
[1765416902098,6.57681611,133.62,133.58,0.05480695]
[1765416902099,3.18515621,133.6,133.58,0.05480695]
[1765416902398,8.75752539,133.59,133.58,0.05489771]
[1765416902900,0.05515621,133.6,133.58,0.05489771]
[1765416905101,3.43515621,133.6,133.58,0.05489771]
[1765416905695,0.05515621,133.6,133.58,3.35489771]
[1765416908096,3.43515621,133.6,133.58,0.05489771]
[1765416909703,0.05515621,133.6,133.58,3.35489771]
[1765416910109,0.05515621,133.6,133.58,0.05489771]
[1765416910312,0.05515621,133.6,133.58,3.35489771]
[1765416911207,10.04206427,133.66,133.59,3.28]
[1765416911410,5.64294493,133.65,133.61,3.28]
[1765416911605,3.13,133.65,133.61,3.28]
[1765416911803,3.13,133.63,133.6,66.9]
[1765416912007,3.13,133.64,133.61,3.28]
[1765416912515,3.18598035,133.64,133.61,0.05003611]
[1765416913117,3.18598035,133.64,133.61,3.33003611]
[1765416913314,0.05598035,133.64,133.61,3.33003611]
[1765416913912,5.63537127,133.68,133.61,3.33003611]
[1765416914210,3.13,133.66,133.61,3.33003611]
[1765416914510,3.13,133.66,133.61,3.28]
[1765416914712,3.13,133.66,133.62,3.28]
[1765416914918,0.05385032,133.65,133.63,0.05513783]
[1765416915111,3.18385032,133.65,133.63,0.05513783]
[1765416915518,0.05385032,133.65,133.63,3.33513783]
[1765416916117,3.13,133.64,133.63,0.05513783]
[1765416916321,3.13,133.64,133.6,63.62]
[1765416916704,3.13,133.62,133.6,63.62]
[1765416916909,3.13,133.63,133.6,63.62]
[1765416917414,3.13,133.63,133.6,63.66882121]
[1765416917918,6.7344,133.62,133.6,63.66882121]
[1765416918316,9.8644,133.62,133.6,63.66882121]
[1765416918520,3.13,133.61,133.6,63.66882121]
[1765416919220,9.91308885,133.62,133.6,63.66882121]
[1765416920616,9.91308885,133.62,133.6,0.04882121]
[1765416920820,2.75994054,133.61,133.6,0.04882121]
[1765416921423,5.88994054,133.61,133.6,0.04882121]
[1765416922929,11.50690637,133.61,133.6,0.04882121]
[1765416923126,5.88994054,133.61,133.6,0.04882121]
[1765416923428,11.50661486,133.61,133.6,0.04882121]
[1765416924736,5.88994054,133.61,133.6,0.04882121]
[1765416925440,11.51909638,133.61,133.6,0.04882121]
[1765416925938,11.52138684,133.61,133.6,0.04882121]
[1765416926135,3.13,133.59,133.56,3.28]
[1765416926332,5.88994054,133.59,133.56,3.28]
[1765416926532,3.13,133.58,133.54,3.28]
[1765416926736,3.13,133.57,133.54,3.28]
[1765416926939,3.13,133.56,133.53,66.9]
[1765416927132,3.18601617,133.56,133.53,66.94926358]
[1765416928135,6.7381,133.55,133.53,66.94926358]
[1765416928343,0.05601617,133.56,133.54,3.28]
[1765416929342,6.7378,133.55,133.54,3.28]
[1765416929640,0.05601617,133.56,133.54,3.28]
[1765416940943,2.81595671,133.56,133.54,3.28]
[1765416941336,6.19595671,133.56,133.53,0.04926358]
[1765416941541,2.81595671,133.56,133.53,3.35926358]
[1765416942648,0.05601617,133.56,133.53,3.35926358]
[1765416944150,3.38,133.63,133.54,3.31]
[1765416944356,2.75994054,133.6,133.54,3.31]
[1765416945052,108.1413,133.62,133.54,3.31]
[1765416945250,0.0571064,133.59,133.57,3.35956479]
[1765416951056,6.19704694,133.59,133.57,0.04956479]
[1765416951257,12.93294694,133.59,133.57,0.04956479]
[1765416951450,3.38,133.58,133.57,0.04956479]
[1765416952355,12.93294694,133.59,133.57,0.04956479]
[1765416953558,10.1730064,133.59,133.57,3.35956479]
[1765416953756,12.93294694,133.59,133.57,0.04956479]
[1765416954663,10.1730064,133.59,133.57,0.04956479]
[1765416955164,3.38,133.58,133.57,0.04956479]
[1765416956676,6.7930064,133.59,133.57,3.35956479]
[1765416956863,10.1730064,133.59,133.57,3.35956479]
[1765416957060,3.38,133.58,133.57,0.04956479]
[1765416957664,6.7930064,133.59,133.57,3.35956479]
[1765416958267,10.1730064,133.59,133.57,0.04956479]
[1765416960256,5.64691501,133.58,133.57,3.35956479]
[1765416960462,6.91206427,133.64,133.57,3.35956479]
[1765416960758,3.38,133.64,133.57,3.35956479]
[1765416960957,104.7374,133.65,133.57,3.35956479]
[1765416961158,10.29206427,133.68,133.6,104.7714]
[1765416961365,3.38,133.68,133.61,3.31]
[1765416961564,0.05689354,133.65,133.64,3.31]
[1765416961964,0.05689354,133.65,133.63,3.36286577]
[1765416962365,3.43689354,133.65,133.63,0.05286577]
[1765416962569,3.38,133.64,133.57,3.31]
[1765416962770,7.69429028,133.63,133.57,3.31]
[1765416963170,10.1145,133.62,133.57,3.31]
[1765416963372,3.38,133.62,133.57,3.31]
[1765416963671,3.42984661,133.61,133.58,0.05278081]
[1765416963872,3.42984661,133.61,133.58,3.36278081]
[1765416964373,10.16474661,133.61,133.58,3.36278081]
[1765416965762,6.78474661,133.61,133.58,3.36278081]
[1765416966164,9.9755,133.6,133.58,0.05278081]
[1765416967268,7.55429028,133.59,133.58,0.05278081]
[1765416967471,9.9765,133.58,133.52,66.8]
[1765416967668,3.24,133.56,133.5,3.18]
[1765416967863,3.24,133.56,133.47,3.18]
[1765416967864,3.24,133.52,133.47,3.18]
[1765416968066,3.24,133.5,133.43,3.18]
[1765416968271,4.31429028,133.49,133.43,3.18]
[1765416968469,0.04752905,133.47,133.45,3.22845272]
[1765416970380,0.04752905,133.47,133.45,9.97095272]
[1765416970672,0.04752905,133.47,133.45,3.22845272]
[1765416970874,3.29752905,133.47,133.45,0.04845272]
[1765416977778,3.29752905,133.47,133.43,3.26]
[1765416977979,3.29752905,133.47,133.42,63.62]
[1765416978274,3.29752905,133.47,133.42,66.88]
[1765416978673,3.29752905,133.47,133.43,0.04925726]
[1765416980074,3.25,133.46,133.43,0.04925726]
[1765416980276,104.8904,133.45,133.43,0.04925726]
[1765416980481,3.25,133.43,133.37,63.66]
[1765416981285,3.25,133.43,133.37,66.92]
[1765416981485,3.30048749,133.41,133.39,0.05159918]
[1765416981983,0.05048749,133.41,133.39,3.31159918]
[1765416984389,3.30048749,133.41,133.39,0.05159918]
[1765416984686,0.05048749,133.41,133.39,0.05159918]
[1765416984881,0.05048749,133.41,133.39,3.31159918]
[1765416986474,3.30048749,133.41,133.39,0.05159918]
[1765416987983,10.04578749,133.41,133.39,0.05159918]
[1765416988179,3.25,133.4,133.37,63.66]
[1765416989181,3.25,133.4,133.37,63.7092634]
[1765416989988,6.7459,133.39,133.37,63.7092634]
[1765416990191,9.9959,133.39,133.37,63.7092634]
[1765416991088,3.25,133.38,133.37,0.0492634]
[1765416992395,3.25,133.36,133.32,63.7]
[1765416992983,7.57669029,133.39,133.33,3.26]
[1765416993489,3.29824147,133.37,133.35,0.05408238]
[1765416993896,10.04544147,133.37,133.35,0.05408238]
[1765416998302,0.04824147,133.37,133.35,3.34408238]
[1765416998783,3.40824147,133.37,133.35,0.05408238]
[1765416999492,0.04824147,133.37,133.35,3.34408238]
[1765416999794,7.68669029,133.43,133.35,3.34408238]
[1765417000196,6.7445,133.42,133.37,3.29]
[1765417000401,3.36,133.41,133.37,3.29]
[1765417000695,0.05629515,133.4,133.38,3.3424373]
[1765417005886,0.05629515,133.4,133.38,10.0885373]
[1765417006191,0.05629515,133.4,133.39,3.29]
[1765417006596,3.36,133.47,133.4,3.29]
[1765417006796,3.36,133.47,133.41,3.29]
[1765417007492,0.05636416,133.45,133.43,3.33807473]
[1765417011999,0.05636416,133.45,133.44,3.29]
[1765417012199,0.05636416,133.45,133.43,67.03807473]
[1765417012407,0.05636416,133.45,133.44,3.29]
[1765417012802,0.05636416,133.45,133.43,63.74807473]
[1765417013795,10.15936416,133.45,133.43,63.74807473]
[1765417015902,3.36,133.44,133.43,0.04807473]
[1765417016102,5.60114769,133.44,133.43,0.04807473]
[1765417016302,6.79936416,133.45,133.43,0.04807473]
[1765417016909,11.72890131,133.44,133.43,0.04807473]
[1765417021110,5.60242864,133.44,133.43,3.33807473]
[1765417021311,0.05636416,133.45,133.43,3.33807473]
[1765417023517,6.7412,133.49,133.44,3.29]
[1765417024414,0.05113839,133.48,133.44,3.29]
[1765417025001,3.27,133.47,133.44,3.29]
[1765417025207,6.03647267,133.46,133.43,0.04807473]
[1765417025606,2.76647267,133.47,133.43,3.26807473]
[1765417025807,0.05113839,133.48,133.43,3.26807473]
[1765417026021,12.77847267,133.47,133.43,3.26807473]
[1765417026217,3.27,133.46,133.43,3.26807473]
[1765417026510,6.03647267,133.45,133.43,0.04807473]
[1765417026700,10.0131,133.45,133.43,0.04807473]
[1765417027012,3.27,133.44,133.43,0.04807473]
[1765417027510,3.27,133.42,133.38,66.92]
[1765417028316,3.27,133.42,133.39,3.22]
[1765417028520,3.31802721,133.42,133.39,3.27104657]
[1765417028907,10.06262721,133.42,133.39,0.05104657]
[1765417029303,3.27,133.41,133.39,0.05104657]
[1765417030916,3.24,133.4,133.39,0.05104657]
[1765417032817,6.7452,133.41,133.39,0.05104657]
[1765417033318,9.9852,133.41,133.39,0.05104657]
[1765417033718,3.24,133.4,133.39,0.05104657]
[1765417034721,9.9858,133.4,133.34,3.15]
[1765417035218,6.7458,133.4,133.35,3.15]
[1765417035410,15.59578372,133.42,133.35,3.15]
[1765417035607,3.2892723,133.4,133.37,0.05485773]
[1765417036923,3.2892723,133.4,133.37,3.20485773]
[1765417037820,3.24,133.39,133.37,0.05485773]
[1765417040019,9.986,133.39,133.37,0.05485773]
[1765417040220,3.24,133.45,133.37,4.70485773]
[1765417040423,3.24,133.45,133.38,3.15]
[1765417040626,3.24,133.43,133.38,3.15]
[1765417041127,3.24,133.42,133.34,3.15]
[1765417041428,0.05679102,133.39,133.37,0.05736615]
[1765417041628,0.05679102,133.39,133.37,3.20736615]
[1765417044122,3.29679102,133.39,133.37,0.05736615]
[1765417044723,3.24,133.38,133.37,0.05736615]
[1765417045633,6.7474,133.36,133.31,3.15]
[1765417046530,0.05153472,133.35,133.33,3.15]
[1765417048334,0.05153472,133.35,133.32,3.19962603]
[1765417048534,3.29153472,133.35,133.32,3.19962603]
[1765417048734,6.06227859,133.35,133.32,3.19962603]
[1765417048928,3.29153472,133.35,133.32,3.19962603]
[1765417049232,6.06227859,133.35,133.32,3.19962603]
[1765417049423,12.81037859,133.35,133.32,3.19962603]
[1765417049935,6.01074387,133.33,133.32,0.04962603]
[1765417050235,6.01074387,133.33,133.3,63.72]
[1765417050236,3.24,133.32,133.24,2.77074387]
[1765417050435,3.24,133.28,133.25,3.15]
[1765417051137,0.05538402,133.28,133.25,3.20486859]
[1765417051526,3.24,133.27,133.25,0.05486859]
[1765417052929,6.01074387,133.26,133.25,0.05486859]
[1765417053330,2.82612789,133.28,133.25,0.05486859]
[1765417053528,6.06612789,133.28,133.25,0.05486859]
[1765417053732,6.01074387,133.26,133.25,0.05486859]
[1765417054538,6.01074387,133.26,133.18,2.77074387]
[1765417054539,6.753,133.25,133.19,3.4]
[1765417054736,2.77074387,133.24,133.19,3.4]
[1765417054934,3.24,133.26,133.2,3.4]
[1765417054935,6.01074387,133.26,133.2,3.4]
[1765417055527,6.01074387,133.26,133.22,3.45416481]
[1765417055528,0.05716358,133.24,133.22,3.45416481]
[1765417056135,3.23716358,133.24,133.22,0.05416481]
[1765417056335,6.00790745,133.24,133.22,0.05416481]
[1765417056542,3.18,133.23,133.22,0.05416481]
[1765417057040,3.18,133.23,133.18,3.4]
[1765417057240,2.77074387,133.21,133.18,3.4]
[1765417058042,2.81900181,133.21,133.18,3.45478743]
[1765417059744,5.99900181,133.21,133.18,3.45478743]
[1765417060444,3.18,133.2,133.18,0.05478743]
[1765417060745,2.77074387,133.2,133.18,0.05478743]
[1765417060931,0.04825794,133.21,133.18,3.45478743]
[1765417061132,5.95074387,133.25,133.2,3.4]
[1765417061548,2.77074387,133.25,133.2,3.4]
[1765417062245,0.04887911,133.24,133.21,3.45612875]
[1765417062733,3.18,133.31,133.24,3.4]
[1765417063137,6.7506,133.3,133.24,3.4]
[1765417063846,0.04961408,133.28,133.26,0.04893362]
[1765417066433,0.04961408,133.28,133.26,3.44893362]
[1765417067944,0.04961408,133.28,133.27,3.4]
[1765417068249,3.18,133.34,133.28,3.4]
[1765417069140,0.05240201,133.32,133.3,0.04859382]
[1765417069341,0.05240201,133.32,133.3,3.44859382]
[1765417069545,3.18,133.4,133.3,3.44859382]
[1765417069844,3.18,133.43,133.34,3.4]
[1765417070043,108.0944,133.42,133.35,67.16]
[1765417070550,0.05089131,133.4,133.37,0.05753729]
[1765417070844,3.23089131,133.4,133.37,0.05753729]
[1765417071049,3.23089131,133.4,133.37,3.45753729]
[1765417071245,3.23089131,133.4,133.37,0.05753729]
[1765417078040,0.05089131,133.4,133.37,3.45753729]
[1765417079142,3.18,133.39,133.37,0.05753729]
[1765417081652,0.05089131,133.4,133.37,3.45753729]
[1765417082053,3.23089131,133.4,133.37,3.45753729]
[1765417082250,0.05089131,133.4,133.37,3.45753729]
[1765417082650,3.18,133.46,133.4,10.145]
[1765417083760,3.23133389,133.44,133.42,0.04909029]
[1765417083956,3.23183232,133.44,133.42,0.04909029]
[1765417084160,3.15,133.43,133.34,3.37]
[1765417084357,3.15,133.43,133.35,67.11]
[1765417084557,9.8952,133.41,133.35,3.37]
[1765417084756,9.8952,133.41,133.35,67.11]
[1765417085263,0.0543535,133.39,133.37,3.42598199]
[1765417086055,6.744,133.43,133.37,3.42598199]
[1765417086056,66.89,133.47,133.38,3.37]
[1765417086356,3.15,133.47,133.38,3.37]
[1765417086556,3.15,133.46,133.38,3.37]
[1765417086762,6.7435,133.44,133.38,10.1162]
[1765417087060,6.7435,133.44,133.4,0.05341354]
[1765417087061,0.0577485,133.42,133.4,0.05341354]
[1765417087245,9.9523485,133.42,133.4,0.05341354]
[1765417087450,3.15,133.41,133.35,3.37]
[1765417088260,3.15,133.39,133.34,67.09]
[1765417088464,3.19833056,133.38,133.35,0.05203745]
[1765417088763,9.94493056,133.38,133.35,0.05203745]
[1765417088949,3.15,133.37,133.35,0.05203745]
[1765417090170,3.19833056,133.38,133.35,0.05203745]
[1765417091074,0.04833056,133.38,133.35,3.44203745]
[1765417092857,0.04833056,133.38,133.35,10.18973745]
[1765417093268,0.04833056,133.38,133.35,0.05203745]
[1765417093569,0.04833056,133.38,133.35,3.44203745]
[1765417094968,0.04833056,133.38,133.35,10.18973745]
[1765417095275,0.04833056,133.38,133.36,3.39]
[1765417096970,0.04833056,133.38,133.36,10.1372]
[1765417097162,10.0837,133.44,133.37,3.39]
[1765417097473,3.34,133.44,133.37,3.39]
[1765417098268,0.05234109,133.42,133.39,0.05708881]
[1765417099173,3.39234109,133.42,133.39,0.05708881]
[1765417099867,6.745,133.41,133.39,0.05708881]
[1765417100073,3.39234109,133.42,133.39,0.05708881]
[1765417100777,0.05234109,133.42,133.39,3.44708881]
[1765417101164,0.05234109,133.42,133.41,3.39]
[1765417102873,3.34,133.46,133.41,3.39]
[1765417103178,10.0816,133.48,133.41,3.39]
[1765417103373,10.0816,133.48,133.42,3.39]
[1765417103677,12.34387308,133.5,133.42,3.39]
[1765417103871,0.04845944,133.47,133.45,0.04971136]
[1765417104073,3.38845944,133.47,133.45,0.04971136]
[1765417106782,0.04845944,133.47,133.45,3.43971136]
[1765417108076,0.04845944,133.47,133.45,0.04971136]
[1765417108278,3.38845944,133.47,133.45,0.04971136]
[1765417108774,3.34,133.46,133.45,0.04971136]
[1765417110778,8.95977289,133.46,133.45,0.04971136]
[1765417111684,3.34,133.44,133.41,63.7]
[1765417111889,3.34,133.42,133.35,3.39]
[1765417112075,3.34,133.41,133.35,3.39]
[1765417112580,0.05228239,133.39,133.37,0.05045897]
[1765417114285,3.14228239,133.39,133.37,0.05045897]
[1765417114884,0.05228239,133.39,133.37,0.05045897]
[1765417116580,0.05228239,133.39,133.37,3.20045897]
[1765417117080,0.05228239,133.39,133.37,9.94715897]
[1765417117288,0.05228239,133.39,133.38,3.15]
[1765417120592,0.05228239,133.39,133.37,0.05045897]
[1765417120780,0.05228239,133.39,133.37,3.20045897]
[1765417122088,0.05228239,133.39,133.37,0.05045897]
[1765417122898,0.05228239,133.39,133.37,3.20045897]
[1765417123693,3.09,133.45,133.38,3.15]
[1765417123892,3.09,133.45,133.39,66.85]
[1765417124394,9.833,133.45,133.4,3.15]
[1765417124792,3.13974703,133.44,133.41,0.05651096]
[1765417124994,3.13974703,133.44,133.41,3.20651096]
[1765417125380,3.13974703,133.44,133.41,0.05651096]
[1765417128400,0.04974703,133.44,133.41,3.20651096]
[1765417128886,0.04974703,133.44,133.43,3.15]
[1765417132592,0.04974703,133.44,133.43,66.85]
[1765417139309,8.18111247,133.51,133.44,3.15]
[1765417139493,128.61880942,133.55,133.44,3.15]
[1765417139494,3.09,133.54,133.46,3.15]
[1765417139801,8.7197267,133.53,133.48,3.15]
[1765417140002,3.09,133.54,133.5,3.15]
[1765417140201,3.09,133.53,133.47,63.7]
[1765417140394,3.09,133.5,133.49,0.05109186]
[1765417140594,8.71931767,133.5,133.49,0.05109186]
[1765417141614,3.1465173,133.51,133.49,0.05109186]
[1765417141798,0.0565173,133.51,133.49,0.05109186]
[1765417142498,3.1465173,133.51,133.49,0.05109186]
[1765417142704,4.6465173,133.51,133.45,63.68]
[1765417142907,3.09,133.49,133.45,63.68]
[1765417143313,3.09,133.48,133.45,63.68]
[1765417143605,3.09,133.48,133.41,66.83]
[1765417143800,3.14718199,133.46,133.44,0.0553949]
[1765417146699,0.05718199,133.46,133.44,3.1553949]
[1765417147309,3.14,133.52,133.44,3.1553949]
[1765417148210,3.18890228,133.49,133.44,3.1553949]
[1765417148408,3.18890228,133.49,133.45,3.15379368]
[1765417149010,0.04890228,133.49,133.46,3.1]
[1765417149309,0.04890228,133.49,133.47,3.1]
[1765417149709,0.04890228,133.49,133.47,9.8417]
[1765417149909,0.04890228,133.49,133.48,3.1]
[1765417150410,0.04890228,133.49,133.47,9.8117]
[1765417150617,0.04890228,133.49,133.48,3.07]
[1765417153513,9.978,133.55,133.48,3.07]
[1765417154412,3.24,133.54,133.48,3.07]
[1765417154612,0.04839485,133.52,133.5,0.05766342]
[1765417154812,3.28839485,133.52,133.5,0.05766342]
[1765417155011,3.28839485,133.52,133.46,63.68]
[1765417155716,3.28839485,133.52,133.45,66.75]
[1765417155908,3.28839485,133.52,133.47,0.05492763]
[1765417156906,3.24,133.49,133.47,0.05492763]
[1765417158318,9.981,133.49,133.47,0.05492763]
[1765417158523,3.24,133.48,133.47,0.05492763]
[1765417158717,3.24,133.48,133.39,3.07]
[1765417158925,3.24,133.48,133.4,63.68]
[1765417159113,3.24,133.48,133.4,66.75]
[1765417159822,3.29113205,133.45,133.43,0.05565445]
[1765417164034,3.24,133.43,133.37,3.07]
[1765417164227,6.00626204,133.43,133.37,3.07]
[1765417164425,3.24,133.43,133.39,3.07]
[1765417165131,0.05674422,133.42,133.4,0.04816814]
[1765417165629,3.29674422,133.42,133.4,0.04816814]
[1765417166930,3.24,133.41,133.4,0.04816814]
[1765417171739,3.29674422,133.42,133.4,0.04816814]
[1765417172741,3.24,133.41,133.4,0.04816814]
[1765417174139,3.24,133.41,133.36,3.32]
[1765417174140,3.19,133.4,133.36,3.32]
[1765417174935,0.05674422,133.42,133.36,3.32]
[1765417174936,3.24674422,133.42,133.36,3.32]
[1765417175244,3.24674422,133.42,133.38,0.05370595]
[1765417175835,3.24674422,133.42,133.38,3.37370595]
[1765417178140,3.24674422,133.42,133.38,10.12000595]
[1765417179947,3.24674422,133.42,133.39,3.32]
[1765417180946,0.05674422,133.42,133.39,3.32]
[1765417182034,3.24674422,133.42,133.38,0.05370595]
[1765417182639,3.19,133.39,133.32,6.7491]
[1765417182846,3.19,133.39,133.32,10.0691]
[1765417183444,3.19,133.37,133.31,63.7]
[1765417183644,3.19,133.34,133.33,0.05708568]
[1765417183944,3.24039331,133.35,133.33,0.05708568]
[1765417184543,9.98839331,133.35,133.33,0.05708568]
[1765417184849,3.19,133.34,133.33,0.05708568]
[1765417185441,6.79839331,133.35,133.33,0.05708568]
[1765417185442,3.24039331,133.35,133.33,0.05708568]
[1765417189342,0.05039331,133.35,133.33,3.37708568]
[1765417192751,0.05039331,133.35,133.34,3.32]
[1765417197853,3.24039331,133.35,133.33,0.05708568]
[1765417198646,3.19,133.41,133.35,3.32]
[1765417198954,3.19,133.41,133.34,2.77067758]
[1765417198955,3.19,133.41,133.37,3.32]
[1765417199157,2.77067758,133.43,133.38,3.32]
[1765417199362,3.19,133.42,133.38,3.32]
[1765417199748,0.05015144,133.41,133.39,3.37310845]
[1765417200660,3.24015144,133.41,133.39,0.05310845]
[1765417200851,0.05015144,133.41,133.39,3.37310845]
[1765417202055,3.19,133.46,133.41,3.32]
[1765417202250,3.19,133.46,133.42,67.04]
[1765417202759,3.19,133.46,133.42,63.72]
[1765417203060,3.2374723,133.45,133.43,0.05084833]
[1765417203853,3.19,133.44,133.37,6.7466]
[1765417204062,3.19,133.44,133.38,63.72]
[1765417204248,9.9337,133.44,133.38,67.01]
[1765417204557,3.19,133.44,133.38,67.01]
[1765417204763,3.19,133.44,133.38,63.72]
[1765417204967,3.36,133.41,133.4,0.05080965]
[1765417207856,3.36,133.39,133.36,63.72]
[1765417208367,3.36,133.39,133.36,67.01]
[1765417208871,10.15987289,133.39,133.36,0.04780059]
[1765417209064,3.36,133.38,133.36,0.04780059]
[1765417209766,10.1068,133.38,133.36,0.04780059]
[1765417209968,3.36,133.37,133.36,0.04780059]
[1765417213973,0.05377289,133.39,133.36,3.33780059]
[1765417214169,3.41377289,133.39,133.36,0.04780059]
[1765417215658,6.7467,133.38,133.36,0.04780059]
[1765417215865,0.05377289,133.39,133.36,3.37780059]
[1765417218265,3.13377289,133.39,133.36,0.04780059]
[1765417218466,3.13377289,133.39,133.36,3.37780059]
[1765417219780,0.05377289,133.39,133.36,3.37780059]
[1765417220277,3.13377289,133.39,133.36,3.37780059]
[1765417221074,0.05377289,133.39,133.36,3.37780059]
[1765417224175,3.13377289,133.39,133.36,3.37780059]
[1765417224374,3.13377289,133.39,133.36,0.04780059]
[1765417224580,6.7466,133.38,133.36,0.04780059]
[1765417224883,3.08,133.37,133.36,0.04780059]
[1765417225883,9.8266,133.38,133.36,0.04780059]
[1765417227888,3.08,133.38,133.36,3.37780059]
[1765417228094,3.13377289,133.39,133.36,3.37780059]
[1765417228393,0.05377289,133.39,133.36,3.37780059]
[1765417230082,0.05377289,133.39,133.38,3.33]
[1765417231293,3.08,133.45,133.39,3.33]
[1765417231479,5.60802879,133.44,133.39,3.33]
[1765417231680,3.08,133.43,133.39,3.33]
[1765417232182,0.05235737,133.42,133.4,3.38266801]
[1765417234999,0.05235737,133.42,133.41,3.25]
[1765417235884,3.18235737,133.42,133.4,0.05266801]
[1765417236080,0.05235737,133.42,133.4,3.30266801]
[1765417237888,0.05235737,133.42,133.4,10.04766801]
[1765417238092,0.05235737,133.42,133.4,3.30266801]
[1765417239691,0.05235737,133.42,133.4,67.00266801]
[1765417239890,0.05235737,133.42,133.41,3.25]
[1765417240090,3.18235737,133.42,133.4,53.52266801]
[1765417240288,106.47025737,133.42,133.34,3.25]
[1765417240488,5.60968637,133.41,133.34,3.25]
[1765417240689,109.26624173,133.39,133.31,3.25]
[1765417240885,109.26624173,133.39,133.31,66.95]
[1765417241088,0.05377855,133.36,133.34,0.05208554]
[1765417241786,4.32864173,133.35,133.34,0.00208554]
[1765417242192,9.93170404,133.35,133.34,0.00208554]
[1765417242696,5.60306231,133.35,133.34,0.00208554]
[1765417242881,113.26317855,133.36,133.34,0.00208554]
[1765417243082,5.60126178,133.35,133.34,0.00208554]
[1765417243493,113.26317855,133.36,133.34,0.00208554]
[1765417243896,1.55377855,133.36,133.34,0.00208554]
[1765417244194,0.05377855,133.36,133.34,0.00208554]
[1765417245895,0.05377855,133.36,133.34,3.25208554]
[1765417247296,111.6624,133.42,133.34,3.25208554]
[1765417247593,168.628,133.43,133.34,3.25208554]
[1765417247782,6.7429,133.45,133.35,3.25]
[1765417248097,5.6014656,133.44,133.35,3.25]
[1765417248395,0.05334413,133.41,133.38,3.30636544]
[1765417250087,104.8822,133.46,133.39,3.25]
[1765417250882,104.8978,133.44,133.39,3.25]
[1765417251087,0.05551031,133.43,133.4,0.05590178]
[1765417251809,6.7448,133.42,133.4,0.05590178]
[1765417252984,6.7448,133.42,133.4,3.30590178]
[1765417253189,0.05551031,133.43,133.4,3.30590178]
[1765417253785,111.6578,133.42,133.4,0.05590178]
[1765417254303,6.7448,133.42,133.4,0.05590178]
[1765417254490,0.05551031,133.43,133.4,0.05590178]
[1765417254692,0.05551031,133.43,133.4,3.30590178]
[1765417254997,6.79961031,133.43,133.4,3.30590178]
[1765417256693,0.05551031,133.43,133.4,3.30590178]
[1765417256895,0.05551031,133.43,133.4,0.05590178]
[1765417258895,6.79951031,133.43,133.4,0.05590178]
[1765417259195,104.9162,133.42,133.33,3.25]
[1765417259395,104.96151031,133.43,133.33,3.25]
[1765417259396,104.9293,133.4,133.33,3.25]